bitfinex/quotes_SOLUSD_20240718
["timestamp","ask_amount","ask_price","bid_price","bid_amount"]
[1721318673727,6.4285,155.56,155.52,6.0543]
[1721318674042,16.0616,155.66,155.52,22.1284]
[1721318674238,20.0,155.67,155.53,1.28542017]
[1721318674539,20.0,155.67,155.56,16.07]
[1721318674714,6.4254,155.64,155.57,6.4279]
[1721318675049,16.056,155.71,155.59,16.0676]
[1721318675336,15.5846,155.8,155.63,6.1038]
[1721318675544,6.4205,155.76,155.68,16.0585]
[1721318675840,276.0772,155.85,155.68,16.0585]
[1721318676012,16.048,155.79,155.68,22.4819]
[1721318676209,276.0772,155.85,155.69,1.28425457]
[1721318676420,16.0441,155.82,155.7,16.0555]
[1721318676829,6.4192,155.79,155.7,16.0555]
[1721318677138,6.418,155.82,155.71,46.28387759]
[1721318677429,6.4204,155.76,155.72,16.1276]
[1721318677634,6.421,155.74,155.68,6.4233]
[1721318677845,6.4206,155.75,155.69,6.423]
[1721318678143,6.4213,155.73,155.68,16.0584]
[1721318678640,16.0504,155.76,155.66,16.1276]
[1721318678846,6.4226,155.7,155.65,16.0616]
[1721318679033,16.0531,155.74,155.63,6.1038]
[1721318679350,16.0531,155.74,155.63,12.5292]
[1721318679635,6.4228,155.7,155.63,12.529]
[1721318679935,6.4239,155.67,155.63,6.1038]
[1721318680242,6.423,155.69,155.64,1.28487558]
[1721318680535,6.4224,155.71,155.64,6.4248]
[1721318680735,13.00433838,155.72,155.66,6.4239]
[1721318680938,6.58253838,155.72,155.63,6.1038]
[1721318681143,260.1,155.78,155.66,16.06]
[1721318681316,6.57830837,155.74,155.63,6.1038]
[1721318681515,6.4226,155.7,155.65,6.4246]
[1721318681716,6.4226,155.7,155.64,6.425]
[1721318681918,6.57502305,155.74,155.63,6.1038]
[1721318682136,20.0,155.73,155.63,6.1038]
[1721318683129,6.57502305,155.74,155.64,1.28478114]
[1721318683436,31.4592,155.82,155.68,16.0583]
[1721318683641,16.0401,155.86,155.71,21.3082]
[1721318683819,260.1,155.9,155.77,6.4197]
[1721318684023,6.4172,155.84,155.77,6.4193]
[1721318684223,16.0391,155.87,155.76,16.0503]
[1721318684842,16.0391,155.87,155.76,22.4703]
[1721318685143,16.2613474,155.87,155.76,16.0503]
[1721318685432,6.4172,155.83,155.77,6.4195]
[1721318685638,16.0419,155.85,155.73,22.4741]
[1721318685818,0.2222474,155.87,155.74,46.28373594]
[1721318686013,0.2222474,155.87,155.72,45.0]
[1721318686219,0.2222474,155.87,155.71,21.3082]
[1721318686539,16.0452,155.81,155.71,37.3635]
[1721318686844,16.0452,155.81,155.71,16.0553]
[1721318687039,6.4203,155.76,155.71,16.0553]
[1721318687251,6.4193,155.78,155.71,16.0553]
[1721318687423,6.4185,155.8,155.75,6.4201]
[1721318687625,6.4181,155.81,155.75,6.4201]
[1721318687841,6.4187,155.8,155.74,1.28386326]
[1721318688141,6.4173,155.83,155.77,6.4193]
[1721318688348,6.4173,155.83,155.78,1.28369695]
[1721318688535,6.57776167,155.86,155.78,1.28369695]
[1721318688743,6.4168,155.84,155.7,1.28356003]
[1721318688937,6.4172,155.83,155.78,6.4192]
[1721318689133,6.4167,155.85,155.79,1.28355907]
[1721318689321,6.4173,155.83,155.79,1.28355907]
[1721318689527,6.4169,155.84,155.79,1.28355907]
[1721318689727,6.4169,155.84,155.8,1.28349726]
[1721318689947,6.4177,155.82,155.79,1.28354156]
[1721318690124,16.2613474,155.87,155.77,22.4681]
[1721318690333,16.2613474,155.87,155.78,1.28355687]
[1721318690525,6.4165,155.85,155.79,6.4185]
[1721318690725,6.4165,155.85,155.8,7.70177914]
[1721318691141,0.2222474,155.87,155.81,6.4178]
[1721318691329,0.2222474,155.87,155.79,22.465]
[1721318691647,6.4167,155.85,155.76,6.3836]
[1721318691832,6.416,155.86,155.8,6.4184]
[1721318692024,0.2222474,155.87,155.76,6.3836]
[1721318692232,6.4171,155.84,155.77,6.4193]
[1721318692535,6.4172,155.83,155.77,6.4196]
[1721318692730,6.4169,155.84,155.78,6.4191]
[1721318692942,6.4173,155.83,155.79,1.28352238]
[1721318693133,16.0415,155.85,155.76,6.3836]
[1721318693335,6.4185,155.8,155.76,6.3836]
[1721318693534,16.0415,155.85,155.76,12.8037]
[1721318693725,16.0415,155.85,155.76,6.3836]
[1721318693931,6.4183,155.81,155.76,6.3836]
[1721318694336,6.4185,155.8,155.76,6.3836]
[1721318694951,6.418,155.81,155.77,1.2837515]
[1721318695144,6.4181,155.81,155.76,6.3836]
[1721318695346,16.0437,155.83,155.69,6.0217]
[1721318695555,6.421,155.74,155.69,6.0217]
[1721318695730,6.4214,155.73,155.68,16.0584]
[1721318695927,6.4217,155.73,155.61,6.0576]
[1721318696133,6.4206,155.75,155.62,1.28436184]
[1721318696436,6.421,155.74,155.69,6.4229]
[1721318696634,16.0453,155.81,155.7,1.28425444]
[1721318696845,20.0,155.8,155.71,6.4221]
[1721318697151,16.0421,155.84,155.71,6.0576]
[1721318697463,32.0847,155.84,155.71,6.0576]
[1721318697753,20.0,155.83,155.71,6.0576]
[1721318698051,20.0,155.83,155.7,1.28424387]
[1721318698248,20.0,155.83,155.69,16.3689]
[1721318698550,6.421,155.74,155.69,6.4228]
[1721318698847,6.4214,155.73,155.68,22.4813]
[1721318699146,16.0481,155.79,155.69,6.4229]
[1721318699451,6.57749389,155.81,155.77,6.4194]
[1721318699647,16.0417,155.85,155.75,16.0505]
[1721318699835,6.4168,155.84,155.78,6.4191]
[1721318700036,6.4173,155.83,155.78,6.4191]
[1721318700251,0.2222474,155.85,155.77,16.0487]
[1721318700551,16.0426,155.84,155.75,15.1704]
[1721318700935,6.4174,155.83,155.77,6.4195]
[1721318701135,0.2222474,155.85,155.78,1.28349826]
[1721318701341,0.2222474,155.85,155.84,6.4168]
[1721318702054,282.0093,155.98,155.84,46.28276419]
[1721318702254,0.8115074,155.99,155.89,6.4147]
[1721318702555,16.8389074,155.99,155.85,51.4432]
[1721318702751,6.4132,155.93,155.88,6.4151]
[1721318702931,6.4126,155.95,155.89,6.4144]
[1721318703129,6.4128,155.94,155.9,1.28255142]
[1721318703332,6.4143,155.9,155.85,12.8596]
[1721318703635,6.4129,155.94,155.88,6.4149]
[1721318703831,6.4115,155.97,155.91,6.4136]
[1721318704071,0.8115074,155.99,155.92,1.28247302]
[1721318704358,6.4136,155.92,155.86,16.0398]
[1721318704535,0.8115074,155.99,155.85,6.4432]
[1721318704742,6.414,155.91,155.86,1.28283254]
[1721318704952,6.4131,155.93,155.88,6.4151]
[1721318705256,6.4119,155.96,155.91,6.4139]
[1721318705462,0.8115074,155.99,155.92,7.69585484]
[1721318705760,6.4115,155.97,155.93,1.28237336]
[1721318706058,0.8115074,155.99,155.94,1.28237464]
[1721318706360,0.8115074,155.99,155.91,16.0339]
[1721318706656,0.8115074,155.99,155.94,6.4127]
[1721318706848,0.8115074,155.99,155.95,1.2820882]
[1721318707356,6.4077,156.07,156.01,6.4094]
[1721318707534,6.408,156.06,156.02,1.28166366]
[1721318707728,6.4083,156.05,156.01,1.28166635]
[1721318707960,6.407,156.08,156.02,17.30436713]
[1721318708156,16.8229074,156.14,156.02,17.30436713]
[1721318708457,6.4054,156.12,156.05,16.0202]
[1721318708658,0.8115074,156.14,156.06,45.0]
[1721318708961,0.8115074,156.14,156.1,22.4212]
[1721318709160,0.8115074,156.14,156.03,88.63]
[1721318709161,0.8115074,156.14,156.08,6.4066]
[1721318709355,0.8115074,156.14,156.06,16.0187]
[1721318709766,0.8115074,156.14,156.07,45.0]
[1721318710060,0.8115074,156.14,156.1,22.4202]
[1721318710235,0.8115074,156.14,156.1,16.0144]
[1721318710431,0.8115074,156.14,156.0,43.63]
[1721318710751,0.8115074,156.14,156.04,6.4086]
[1721318710951,6.4053,156.12,156.05,6.408]
[1721318711147,6.4057,156.12,156.05,6.408]
[1721318711352,16.0132,156.13,155.99,16.0256]
[1721318711732,0.8115074,156.14,156.0,1.28130518]
[1721318711962,0.8115074,156.14,156.04,6.4085]
[1721318712165,6.4062,156.1,156.05,1.28121416]
[1721318712465,6.4086,156.04,155.98,6.411]
[1721318712673,6.4094,156.02,155.96,6.4118]
[1721318712838,32.0279,156.12,155.92,6.0019]
[1721318713038,6.4106,155.99,155.93,6.413]
[1721318713258,6.4101,156.01,155.94,6.4125]
[1721318713440,6.4101,156.01,155.94,6.4123]
[1721318713641,6.4091,156.03,155.97,6.4113]
[1721318713841,36.0144,156.11,155.99,16.0257]
[1721318714140,36.0144,156.11,155.92,6.3292]
[1721318714141,20.0,156.11,155.92,6.0019]
[1721318714359,16.0233,156.03,155.93,16.0325]
[1721318714670,16.0233,156.03,155.92,6.0019]
[1721318714671,32.0359,156.08,155.94,1.28204865]
[1721318714845,6.4106,156.0,155.94,7.69434865]
[1721318715165,6.4119,155.96,155.92,6.0019]
[1721318715365,6.4123,155.95,155.9,6.4142]
[1721318715568,6.4115,155.97,155.91,16.0348]
[1721318715763,16.0254,156.01,155.92,6.4134]
[1721318715966,6.4098,156.02,155.95,6.412]
[1721318716267,6.4085,156.05,155.96,1.28197184]
[1721318716452,6.4074,156.07,156.01,6.4098]
[1721318716641,6.4069,156.09,156.02,1.2815783]
[1721318716842,16.0123,156.13,156.01,16.0245]
[1721318717061,6.4074,156.07,156.01,22.4343]
[1721318717248,6.4069,156.08,156.02,6.4094]
[1721318717449,6.4065,156.1,156.03,1.28139862]
[1721318717661,16.0095,156.16,156.04,1.28125652]
[1721318717848,6.4055,156.12,156.06,6.4077]
[1721318718054,6.4057,156.11,156.07,45.0]
[1721318718260,16.0123,156.21,156.08,1.28106997]
[1721318718459,16.0061,156.2,156.09,6.4063]
[1721318718681,7.2160074,156.14,156.08,16.0164]
[1721318718858,6.4051,156.13,156.09,45.0]
[1721318719046,6.4054,156.12,156.05,6.4081]
[1721318719255,6.4059,156.11,156.05,6.4081]
[1721318719573,7.2160074,156.14,156.07,6.4069]
[1721318719778,6.4061,156.11,156.06,45.0]
[1721318719975,0.8115074,156.14,156.07,16.0183]
[1721318720164,0.8115074,156.14,156.08,45.0]
[1721318720478,0.8115074,156.14,156.08,6.4069]
[1721318720687,0.8115074,156.14,155.99,49.6319]
[1721318720979,0.8115074,156.14,156.0,6.4098]
[1721318720980,6.4081,156.06,156.0,6.4098]
[1721318721156,16.0153,156.11,155.99,6.0019]
[1721318721355,6.4086,156.04,155.99,6.0019]
[1721318721578,16.0176,156.08,155.93,6.5833]
[1721318721953,16.0176,156.08,155.97,6.4114]
[1721318722154,6.41,156.01,155.95,22.4428]
[1721318722377,6.4095,156.02,155.96,6.4118]
[1721318722573,16.0203,156.06,155.95,16.0306]
[1721318722778,6.4102,156.0,155.95,16.0306]
[1721318722965,6.4114,155.98,155.92,6.4135]
[1721318723273,6.4107,155.99,155.93,6.413]
[1721318723582,6.4111,155.98,155.91,16.0338]
[1721318723770,16.0227,156.03,155.92,6.4134]
[1721318723958,6.4107,155.99,155.93,6.413]
[1721318724157,6.4107,155.99,155.94,6.4127]
[1721318724359,6.4111,155.98,155.92,6.4134]
[1721318724555,6.4107,155.99,155.93,6.413]
[1721318724751,32.0382,156.07,155.94,1.28214074]
[1721318724956,6.409,156.03,155.97,6.4114]
[1721318725175,20.0,156.06,155.89,15.2594]
[1721318725473,20.0,156.06,155.87,6.5833]
[1721318725474,6.4123,155.95,155.9,6.4142]
[1721318725674,20.0,156.06,155.88,6.4151]
[1721318725878,6.4129,155.94,155.88,6.4151]
[1721318726085,16.0284,155.98,155.87,6.5833]
[1721318726291,6.4131,155.93,155.88,6.415]
[1721318726487,6.4118,155.97,155.87,6.5833]
[1721318726665,32.0462,156.03,155.87,6.5833]
[1721318726666,32.0462,156.03,155.89,6.4144]
[1721318726858,6.4128,155.94,155.88,6.4151]
[1721318727169,32.0462,156.03,155.87,6.5833]
[1721318727373,6.4116,155.97,155.88,46.28228819]
[1721318727879,16.0251,156.01,155.9,22.4496]
[1721318728080,16.0251,156.01,155.91,45.0]
[1721318728377,32.0462,156.03,155.88,45.0]
[1721318728378,6.4128,155.94,155.88,45.0]
[1721318728674,16.0273,155.99,155.82,35.2415]
[1721318728675,6.414,155.91,155.85,6.4163]
[1721318728853,6.4127,155.94,155.88,16.0372]
[1721318729057,32.0462,156.03,155.88,22.452]
[1721318729258,6.4132,155.93,155.88,22.4523]
[1721318729467,16.0249,156.01,155.88,16.0372]
[1721318729660,20.0,156.0,155.82,35.5688]
[1721318729979,20.0,156.0,155.9,22.4493]
[1721318730178,6.4124,155.95,155.9,16.035]
[1721318730380,32.054,155.99,155.83,1.48447218]
[1721318730699,6.4152,155.88,155.82,6.4176]
[1721318730975,6.56950382,155.96,155.81,6.0999]
[1721318730976,6.4157,155.87,155.81,22.4623]
[1721318731186,6.4157,155.87,155.81,16.0447]
[1721318731383,16.0366,155.9,155.78,16.0478]
[1721318731593,6.4176,155.82,155.77,6.4193]
[1721318731781,16.0383,155.88,155.78,1.28354244]
[1721318732085,16.0344,155.92,155.79,1.2834388]
[1721318732256,16.0344,155.92,155.82,16.0434]
[1721318732457,6.4159,155.87,155.82,16.0434]
[1721318732677,6.4153,155.88,155.83,7.69999529]
[1721318732892,6.4156,155.87,155.82,16.0434]
[1721318733182,6.56967425,155.94,155.74,6.3632]
[1721318733183,6.4172,155.84,155.74,6.3632]
[1721318733393,6.4173,155.83,155.78,6.4191]
[1721318733567,32.0705,155.91,155.75,6.4204]
[1721318733775,6.4185,155.8,155.75,16.0509]
[1721318733971,6.4181,155.81,155.75,22.4711]
[1721318734168,6.4185,155.8,155.75,22.4711]
[1721318734372,6.4189,155.79,155.74,6.4209]
[1721318734590,6.4195,155.78,155.72,22.4756]
[1721318734774,6.4188,155.8,155.72,16.054]
[1721318734962,6.4188,155.8,155.68,91.17123622]
[1721318734963,6.418,155.82,155.76,6.42]
[1721318735158,32.0705,155.91,155.76,6.4198]
[1721318735463,6.4177,155.82,155.76,6.42]
[1721318735771,6.4168,155.84,155.78,6.4192]
[1721318735983,32.0705,155.91,155.79,45.0]
[1721318736162,16.0363,155.9,155.79,1.28334997]
[1721318736362,6.417,155.84,155.78,6.419]
[1721318736577,16.039,155.87,155.77,45.0]
[1721318736812,6.4189,155.79,155.77,45.0]
[1721318736970,16.0422,155.84,155.77,45.0]
[1721318737171,6.4181,155.81,155.77,45.0]
[1721318737480,16.0422,155.84,155.77,45.0]
[1721318737671,16.0395,155.87,155.78,6.419]
[1721318737872,48.1059,155.91,155.77,45.0]
[1721318738073,6.4163,155.86,155.79,16.0463]
[1721318738272,6.4163,155.86,155.8,46.28322632]
[1721318738471,48.1059,155.91,155.8,46.28322632]
[1721318738472,6.4153,155.88,155.82,6.4173]
[1721318738784,6.4165,155.85,155.8,45.0]
[1721318738999,6.56967425,155.94,155.8,45.0]
[1721318739296,6.4159,155.87,155.8,45.0]
[1721318739482,6.4165,155.85,155.8,67.4636]
[1721318739686,6.56967425,155.94,155.8,61.0455]
[1721318740002,6.56967425,155.94,155.84,16.0415]
[1721318740163,6.56967425,155.94,155.87,6.4155]
[1721318740361,6.4128,155.94,155.88,1.28268488]
[1721318740564,6.4133,155.93,155.87,45.0]
[1721318740765,6.4136,155.92,155.88,1.28266172]
[1721318740973,16.0282,155.98,155.88,16.0373]
[1721318741267,6.4142,155.91,155.85,6.4163]
[1721318741572,6.4131,155.93,155.86,45.0]
[1721318741883,6.4127,155.94,155.86,45.0]
[1721318742187,6.4119,155.96,155.91,6.4136]
[1721318742487,6.412,155.96,155.91,6.4138]
[1721318742681,6.412,155.96,155.86,45.0]
[1721318742888,6.57116416,155.99,155.87,0.17]
[1721318743085,6.2574,156.01,155.87,0.17]
[1721318743278,22.2826,156.01,155.9,16.0351]
[1721318743582,6.57182923,156.02,155.92,16.033]
[1721318743780,6.4089,156.04,155.98,6.4109]
[1721318744090,6.4085,156.05,155.99,1.28191719]
[1721318744322,6.4094,156.02,155.97,6.4114]
[1721318744590,16.0221,156.04,155.92,22.6995]
[1721318744768,6.4107,155.99,155.93,51.4129]
[1721318745079,6.4101,156.01,155.94,17.31319482]
[1721318745283,6.4101,156.01,155.95,45.0]
[1721318745470,6.4083,156.05,155.99,6.4104]
[1721318745663,6.4083,156.05,156.0,6.4101]
[1721318745869,6.4083,156.05,155.99,6.4105]
[1721318746087,6.4087,156.04,155.99,6.4105]
[1721318746392,6.4076,156.07,156.01,6.4094]
[1721318746589,6.4076,156.07,156.02,1.28151625]
[1721318746768,6.4083,156.05,156.0,16.0247]
[1721318746973,6.4078,156.06,156.01,45.0]
[1721318747283,22.58904182,156.11,156.01,45.0]
[1721318747284,6.4086,156.04,156.01,45.0]
[1721318747465,6.4086,156.04,156.0,45.0]
[1721318747666,16.0194,156.06,155.95,6.4122]
[1721318747885,6.4097,156.02,155.96,51.4117]
[1721318748097,16.0163,156.1,156.0,6.4102]
[1721318748393,16.0163,156.1,155.96,45.0]
[1721318748779,16.0163,156.1,155.97,1.28167289]
[1721318749100,16.0163,156.1,155.96,45.0]
[1721318749285,16.0184,156.08,155.96,45.0]
[1721318749485,6.4093,156.03,155.97,6.4111]
[1721318749686,6.4085,156.05,155.98,45.0]
[1721318749993,6.4082,156.05,156.01,16.0242]
[1721318750179,6.4074,156.07,156.02,1.28163341]
[1721318750384,6.57464182,156.11,156.03,6.4086]
[1721318750587,6.4069,156.09,156.04,1.28145614]
[1721318750896,20.0,156.1,156.02,6.4093]
[1721318750897,6.407,156.08,156.02,6.4093]
[1721318751205,6.4064,156.1,156.05,16.0198]
[1721318751385,16.4084074,156.14,155.96,64.24]
[1721318751578,16.0128,156.13,155.97,0.34]
[1721318751905,6.4071,156.08,155.97,0.34]
[1721318752205,6.407,156.08,156.02,6.4093]
[1721318752391,16.0128,156.13,156.03,45.0]
[1721318752574,6.4062,156.1,156.04,6.4085]
[1721318752780,6.4066,156.09,156.04,6.4085]
[1721318752987,6.4066,156.09,156.05,1.28140284]
[1721318753282,6.4059,156.11,156.05,1.28140284]
[1721318753483,6.4059,156.11,156.05,6.4078]
[1721318753695,32.4201074,156.14,156.03,61.0216]
[1721318753909,6.4072,156.08,156.03,61.0216]
[1721318754098,16.0137,156.12,156.03,61.0216]
[1721318754300,6.4067,156.09,156.03,67.4305]
[1721318754686,16.4084074,156.14,156.06,6.4077]
[1721318754891,6.4058,156.11,156.07,1.28111536]
[1721318755096,6.4064,156.1,156.05,22.428]
[1721318755289,6.4064,156.1,156.05,16.0199]
[1721318755482,6.4058,156.11,156.05,22.428]
[1721318755692,16.4084074,156.14,156.05,22.428]
[1721318755910,16.4084074,156.14,156.05,16.0199]
[1721318756099,6.4066,156.09,156.06,1.28118531]
[1721318756283,16.0128,156.13,156.07,1.28123737]
[1721318756489,16.4084074,156.14,156.04,17.30171752]
[1721318756705,6.4056,156.12,156.06,6.4076]
[1721318756906,7.2161074,156.14,156.07,46.28111653]
[1721318757219,0.8115074,156.14,156.08,16.0168]
[1721318757383,0.8115074,156.14,156.09,46.28070906]
[1721318757581,0.8115074,156.14,156.09,1.28070906]
[1721318757986,0.8115074,156.14,156.13,6.4049]
[1721318758291,0.8115074,156.14,156.13,45.0]
[1721318758495,0.8115074,156.14,156.13,46.28055468]
[1721318759202,0.8115074,156.14,156.13,51.4049]
[1721318759713,0.8115074,156.14,156.13,52.68540464]
[1721318759910,0.8115074,156.14,156.13,51.4049]
[1721318760122,0.8115074,156.14,156.13,52.68533307]
[1721318760289,0.8115074,156.14,156.13,51.4049]
[1721318760607,0.8115074,156.14,156.13,52.68535139]
[1721318761116,0.8115074,156.14,156.13,53.02535139]
[1721318761324,0.8115074,156.14,156.13,51.7449]
[1721318761689,28.69297276,156.28,156.18,6.4027]
[1721318761690,6.4005,156.24,156.18,6.4027]
[1721318762003,6.4004,156.24,156.19,52.68236166]
[1721318762213,6.4004,156.24,156.2,1.28003688]
[1721318762514,6.4009,156.23,156.2,1.28003688]
[1721318763225,15.9995,156.26,156.14,16.011]
[1721318763516,15.9995,156.26,156.16,16.0087]
[1721318763712,6.4019,156.21,156.17,45.0]
[1721318763916,6.4022,156.2,156.17,45.0]
[1721318764228,6.4017,156.21,156.16,51.4035]
[1721318764512,16.0015,156.24,156.15,16.0095]
[1721318764713,6.4016,156.21,156.15,16.0095]
[1721318764941,6.4013,156.22,156.15,16.0095]
[1721318765291,16.0004,156.25,156.15,16.0095]
[1721318765518,6.4021,156.2,156.15,16.0095]
[1721318765833,32.0028,156.24,156.12,6.5396]
[1721318766121,44.68977276,156.28,156.12,6.5396]
[1721318766488,20.0,156.27,156.18,6.4024]
[1721318766703,35.9982,156.27,156.12,6.5396]
[1721318766921,6.4014,156.22,156.17,6.4032]
[1721318767132,6.4009,156.23,156.18,7.68292892]
[1721318767297,6.4005,156.24,156.19,51.4023]
[1721318767616,15.9982,156.27,156.19,45.0]
[1721318768310,6.3999,156.26,156.21,6.4016]
[1721318768492,0.8115074,156.3,156.22,1.27987806]
[1721318768701,6.3994,156.27,156.22,7.68087806]
[1721318769201,0.8115074,156.3,156.22,1.27987806]
[1721318769418,0.8115074,156.3,156.19,45.0]
[1721318769419,6.3986,156.29,156.24,6.4001]
[1721318769606,6.3999,156.26,156.2,22.4066]
[1721318769803,16.0016,156.24,156.14,16.011]
[1721318770012,16.0016,156.24,156.15,6.4039]
[1721318770196,15.9985,156.27,156.16,16.0085]
[1721318770519,6.4001,156.25,156.2,16.0045]
[1721318770703,31.9957,156.28,156.12,66.3382]
[1721318770912,6.4025,156.19,156.14,6.4044]
[1721318771220,6.4032,156.17,156.13,16.0113]
[1721318771428,0.8115074,156.3,156.14,0.3273]
[1721318771717,6.3999,156.26,156.13,20.72161981]
[1721318772021,6.3987,156.29,156.23,6.4006]
[1721318772223,6.3991,156.28,156.24,1.27974303]
[1721318772398,6.3984,156.29,156.24,7.68004303]
[1721318772599,6.3991,156.28,156.23,6.4008]
[1721318772800,0.8115074,156.3,156.23,16.0012]
[1721318773112,7.2094074,156.3,156.25,6.3999]
[1721318773497,0.8115074,156.3,156.26,6.3993]
[1721318773717,0.8115074,156.3,156.26,1.2795229]
[1721318774019,0.8115074,156.3,156.27,1.27944596]
[1721318774341,0.8115074,156.3,156.27,7.67834596]
[1721318774833,12.9002924,156.37,156.28,45.0]
[1721318774834,6.6908924,156.37,156.28,45.0]
[1721318775124,6.3955,156.36,156.31,22.3902]
[1721318775323,22.66940893,156.44,156.33,15.9912]
[1721318775507,0.8115074,156.46,156.32,46.27894602]
[1721318775508,0.8115074,156.46,156.35,6.3958]
[1721318775696,6.3943,156.39,156.32,45.0]
[1721318775893,6.3943,156.39,156.32,60.9925]
[1721318776314,6.3938,156.41,156.35,6.3956]
[1721318776520,6.3939,156.4,156.36,45.0]
[1721318776699,6.3946,156.39,156.34,15.99]
[1721318776897,6.3947,156.38,156.35,45.0]
[1721318777319,22.667494,156.45,156.36,1.27879891]
[1721318777528,6.3928,156.43,156.37,6.3947]
[1721318777699,6.3928,156.43,156.38,45.0]
[1721318777900,6.3928,156.43,156.38,51.3945]
[1721318778107,6.3921,156.45,156.39,7.67259199]
[1721318778317,6.3922,156.44,156.4,1.27844102]
[1721318778520,6.3918,156.45,156.4,1.27844102]
[1721318778723,6.3918,156.45,156.4,6.3938]
[1721318779042,7.2029074,156.46,156.41,7.67150924]
[1721318779340,6.3919,156.45,156.42,1.27826967]
[1721318779624,0.8115074,156.46,156.43,1.27830178]
[1721318779831,0.8115074,156.46,156.38,45.0]
[1721318780004,6.3918,156.45,156.39,6.3942]
[1721318780330,0.8115074,156.46,156.4,1.27828419]
[1721318780552,0.8115074,156.46,156.4,15.984]
[1721318780832,0.8115074,156.46,156.41,45.17]
[1721318780999,0.8115074,156.46,156.42,6.3929]
[1721318781199,0.8115074,156.46,156.43,45.0]
[1721318781402,0.8115074,156.46,156.44,1.27810733]
[1721318781602,0.8115074,156.46,156.44,6.392]
[1721318781818,0.8115074,156.46,156.45,45.0]
[1721318782030,0.8115074,156.46,156.45,51.3918]
[1721318782226,0.8115074,156.46,156.45,45.0]
[1721318782439,0.8115074,156.46,156.45,52.6697174]
[1721318782939,0.8115074,156.46,156.27,31.08486545]
[1721318782940,6.3928,156.43,156.38,6.3942]
[1721318783103,6.3928,156.43,156.35,15.7862]
[1721318783104,6.3934,156.41,156.35,15.7862]
[1721318783419,0.8115074,156.46,156.35,15.7862]
[1721318783626,0.8115074,156.46,156.38,0.3273]
[1721318783828,0.8115074,156.46,156.42,6.3929]
[1721318784033,0.8115074,156.46,156.42,15.982]
[1721318784206,0.8115074,156.46,156.4,6.3936]
[1721318784403,7.2030074,156.46,156.36,1.8067404]
[1721318784603,0.8115074,156.46,156.42,6.3929]
[1721318784824,0.8115074,156.46,156.42,6.3926]
[1721318785014,6.3922,156.44,156.39,6.3941]
[1721318785233,0.8115074,156.46,156.37,15.9871]
[1721318785525,6.3923,156.44,156.39,15.9849]
[1721318785741,0.8115074,156.46,156.37,6.395]
[1721318785944,0.8115074,156.46,156.36,15.9887]
[1721318786139,0.8115074,156.46,156.38,6.3945]
[1721318786438,6.3934,156.42,156.36,15.9887]
[1721318786643,0.8115074,156.46,156.37,0.17]
[1721318786830,6.3933,156.42,156.36,6.5651]
[1721318787030,6.3937,156.41,156.37,1.27845598]
[1721318787235,15.9812,156.44,156.36,1.2784683]
[1721318787442,15.9812,156.44,156.34,15.9903]
[1721318787443,6.3958,156.36,156.31,15.9933]
[1721318787618,6.396,156.35,156.28,6.2434]
[1721318787819,15.9851,156.4,156.3,15.9944]
[1721318788015,6.3966,156.34,156.28,12.6418]
[1721318788232,6.396,156.35,156.28,6.2434]
[1721318788438,6.3964,156.34,156.28,6.2434]
[1721318788642,15.9874,156.38,156.28,6.2434]
[1721318788947,6.3967,156.33,156.28,6.2434]
[1721318789139,15.9894,156.36,156.27,15.9975]
[1721318789370,15.9862,156.39,156.29,6.3982]
[1721318789551,6.3963,156.35,156.3,6.3978]
[1721318789924,15.9882,156.37,156.26,15.9988]
[1721318790227,15.9882,156.37,156.24,19.24]
[1721318790427,6.397,156.33,156.28,6.3984]